bitfinex-derivatives/quotes_ETHF0:USTF0_20250115
["timestamp","ask_amount","ask_price","bid_price","bid_amount"]
[1736933932027,0.3109,3217.6,3217.3,0.31092]
[1736933932230,0.3109,3217.6,3217.1,40.8]
[1736933932231,9.41947516,3217.8,3217.1,40.8]
[1736933932529,0.31094,3217.2,3217.0,3.2078]
[1736933932729,0.31094,3217.2,3217.0,3.51875]
[1736933932917,2.45106609,3217.5,3217.0,3.2078]
[1736933933232,0.31093,3217.3,3217.1,0.31094]
[1736933936125,0.31093,3217.2,3216.9,3.2078]
[1736933936326,0.31094,3217.1,3216.9,3.51876]
[1736933936631,3.55126543,3217.1,3216.5,3.51879]
[1736933936827,2.76203609,3216.9,3216.7,0.31098]
[1736933937231,2.45106609,3216.9,3216.5,3.2078]
[1736933937431,0.31097,3216.8,3216.6,0.31098]
[1736933937632,3.53478952,3216.8,3216.3,40.8]
[1736933937838,0.31098,3216.7,3216.3,40.8]
[1736933938132,0.31099,3216.6,3216.4,0.31101]
[1736933939826,4.03528952,3216.8,3216.3,40.8]
[1736933940030,0.31098,3216.7,3216.5,0.31099]
[1736933940233,4.03528952,3216.8,3216.3,40.8]
[1736933940424,0.311,3216.5,3216.3,41.11101]
[1736933940625,0.31099,3216.6,3216.4,0.311]
[1736933941025,4.34626952,3216.8,3216.6,0.31098]
[1736933941233,4.03528952,3216.8,3216.7,0.31098]
[1736933941736,3.53478952,3216.8,3216.7,0.31098]
[1736933941939,5.65886609,3217.2,3216.3,40.8]
[1736933942128,0.31094,3217.1,3216.4,1.08854]
[1736933942329,3.44803424,3217.1,3216.4,0.77753]
[1736933942529,3.44803424,3217.1,3217.0,0.31095]
[1736933942732,0.9616,3217.5,3216.4,0.77753]
[1736933942733,3.72357609,3217.5,3217.1,0.31094]
[1736933942928,3.2078,3217.6,3217.5,0.3109]
[1736933943524,3.2078,3217.6,3217.5,41.1109]
[1736933944136,3.2078,3217.6,3217.5,0.3109]
[1736933946328,3.2078,3217.6,3217.0,1.4601]
[1736933946539,0.31094,3217.1,3216.8,0.31097]
[1736933946739,5.65886609,3217.2,3216.5,10.51043096]
[1736933946935,0.31097,3216.9,3216.6,0.31099]
[1736933947140,4.00253497,3217.1,3216.8,0.31097]
[1736933947342,0.31095,3217.0,3216.8,0.31097]
[1736933947736,0.31097,3216.9,3216.7,0.31097]
[1736933947937,3.72759047,3217.0,3216.8,0.31097]
[1736933948542,3.72758047,3217.0,3216.8,0.31097]
[1736933948742,3.41663047,3217.0,3216.9,0.31096]
[1736933949041,3.41663047,3217.0,3216.4,2.211]
[1736933949042,3.2078,3217.2,3217.0,0.31094]
[1736933949235,3.51873,3217.2,3217.0,0.31094]
[1736933949443,3.2078,3217.2,3216.5,3.2078]
[1736933949634,5.96979609,3217.2,3217.0,0.31095]
[1736933950141,5.65886609,3217.2,3216.5,3.2078]
[1736933950340,2.91976609,3217.5,3216.9,3.2078]
[1736933950643,2.91976609,3217.5,3217.4,0.31091]
[1736933950841,2.91976609,3217.5,3216.9,3.2078]
[1736933951046,2.76200609,3217.2,3216.9,0.31096]
[1736933951240,2.45106609,3217.2,3216.4,5.4188]
[1736933951445,0.31097,3216.9,3216.6,0.31098]
[1736933951640,2.45106609,3216.9,3216.8,0.31097]
[1736933951940,2.45106609,3217.2,3216.4,4.4838]
[1736933952242,3.2078,3217.4,3217.2,0.31093]
[1736933952243,3.35788965,3217.3,3217.2,0.31093]
[1736933952444,3.35788965,3217.3,3217.1,0.31093]
[1736933952641,3.2078,3217.4,3216.9,0.4783]
[1736933952843,3.2078,3217.4,3217.3,0.31092]
[1736933953345,3.2078,3217.8,3217.7,0.31088]
[1736933954039,3.2078,3217.8,3217.4,0.482]
[1736933954348,5.96974609,3217.8,3217.5,0.3109]
[1736933954548,5.65886609,3217.8,3217.0,0.4973]
[1736933954847,0.3109,3217.6,3217.4,0.31091]
[1736933955047,3.69640942,3217.7,3217.4,0.31091]
[1736933955249,3.38551942,3217.7,3217.0,0.4973]
[1736933955441,3.38551942,3217.7,3217.6,0.31089]
[1736933955841,3.69639942,3217.7,3217.5,0.3109]
[1736933956541,3.69639942,3217.7,3217.0,0.4973]
[1736933956542,3.38551942,3217.7,3217.0,0.4973]
[1736933956737,2.45106609,3217.5,3217.3,0.31092]
[1736933956947,2.76197609,3217.5,3217.0,0.4973]
[1736933957242,2.76197609,3217.5,3217.3,0.31092]
[1736933957243,3.82057019,3217.4,3217.3,0.31092]
[1736933957849,0.4788,3217.4,3217.3,0.31092]
[1736933959149,5.65886609,3217.8,3217.0,0.4973]
[1736933959442,3.57571778,3217.7,3217.0,0.4973]
[1736933959850,3.57571778,3217.7,3217.6,0.31089]
[1736933960043,3.57571778,3217.7,3217.0,0.4973]
[1736933960242,0.3109,3217.6,3217.3,0.31092]
[1736933960447,0.31091,3217.5,3217.3,0.31092]
[1736933961242,3.88660778,3217.7,3217.1,0.31094]
[1736933961447,3.88660778,3217.7,3217.5,0.3109]
[1736933961642,3.57571778,3217.7,3217.0,0.4973]
[1736933961840,5.65886609,3217.8,3217.7,0.31088]
[1736933962044,5.96974609,3217.8,3217.5,0.3109]
[1736933962356,5.65886609,3217.8,3217.0,0.4973]
[1736933962651,5.65886609,3217.8,3217.6,0.31089]
[1736933962952,5.96973609,3217.8,3217.6,0.31089]
[1736933963151,5.96973609,3217.8,3217.0,0.4973]
[1736933963152,5.65886609,3217.8,3217.7,0.31088]
[1736933963543,3.2078,3217.8,3217.7,0.31088]
[1736933963951,3.2078,3217.8,3217.0,0.4973]
[1736933963952,3.51868,3217.8,3217.6,0.31089]
[1736933964153,3.2078,3217.8,3217.0,0.4973]
[1736933964345,3.2078,3217.8,3217.6,0.31089]
[1736933964542,3.26499216,3217.7,3217.0,0.4973]
[1736933964844,2.45106609,3217.6,3217.0,0.4973]
[1736933965054,0.31093,3217.3,3217.0,0.80825]
[1736933965351,3.56501891,3217.2,3217.0,0.31094]
[1736933965550,4.51711891,3217.2,3217.0,0.31094]
[1736933965753,4.82804891,3217.2,3217.0,0.31094]
[1736933965955,4.51711891,3217.2,3217.1,0.31094]
[1736933966152,4.51711891,3217.2,3216.6,0.9839]
[1736933966451,4.51711891,3217.2,3217.0,0.31095]
[1736933966749,4.02431891,3217.2,3217.1,0.31094]
[1736933972453,4.02431891,3217.2,3216.7,3.2078]
[1736933972753,0.31096,3217.0,3216.8,0.31096]
[1736933972953,0.5012,3217.1,3216.8,0.31097]
[1736933973151,0.5012,3217.1,3216.9,0.31095]
[1736933973350,3.60364053,3217.0,3216.8,0.31097]
[1736933973561,3.60364053,3217.0,3216.9,0.31096]
[1736933973953,0.31096,3216.9,3216.6,0.31098]
[1736933974253,5.65886609,3217.0,3216.8,0.31096]
[1736933974449,3.51875,3217.0,3216.8,0.31096]
[1736933974654,3.40537237,3216.9,3216.8,0.31096]
[1736933975052,3.71633237,3216.9,3216.8,0.31096]
[1736933975956,3.40537237,3216.9,3216.8,0.31096]
[1736933976855,3.40537237,3216.9,3216.8,3.51876]
[1736933977054,0.4593,3217.2,3217.1,0.31094]
[1736933977454,3.87586879,3217.2,3217.1,0.31094]
[1736933979663,3.41656879,3217.2,3217.1,0.31094]
[1736933979854,0.487,3217.6,3217.5,0.3109]
[1736933980257,3.52702527,3217.5,3217.4,0.31091]
[1736933980458,3.52702527,3217.6,3217.5,0.3109]
[1736933980659,0.4914,3217.7,3217.2,3.98514]
[1736933980660,0.4938,3217.9,3217.3,0.77731]
[1736933980856,0.4938,3217.9,3217.8,0.31087]
[1736933981560,2.94486609,3217.9,3217.6,0.31089]
[1736933981758,2.94486609,3217.9,3217.8,0.31087]
[1736933981959,2.94486609,3217.9,3217.4,0.471]
[1736933982161,6.53594524,3217.9,3217.7,0.31088]
[1736933983060,0.31087,3217.8,3217.2,3.51872]
[1736933983255,2.76196609,3217.5,3217.3,0.31092]
[1736933983462,2.76197609,3217.5,3217.3,0.31092]
[1736933983658,3.87570809,3217.4,3217.3,0.31092]
[1736933984269,4.18662809,3217.4,3217.2,0.31093]
[1736933984859,3.87570809,3217.4,3217.3,0.31092]
[1736933993971,3.40690809,3217.4,3217.3,0.31092]
[1736933994176,3.2078,3217.6,3217.5,0.3109]
[1736933994361,5.65886609,3217.6,3217.5,0.3109]
[1736933994675,9.3228728,3217.6,3217.4,0.31091]
[1736933994872,9.3228728,3217.6,3217.2,0.4752]
[1736933995068,9.0119728,3217.6,3217.5,0.3109]
[1736933997570,9.3228628,3217.6,3217.5,0.3109]
[1736933997775,9.0119728,3217.6,3217.5,0.3109]
[1736934000073,5.65886609,3217.6,3217.5,0.3109]
[1736934000470,2.45106609,3217.6,3217.5,0.3109]
[1736934000870,2.94486609,3217.9,3217.8,0.31087]
[1736934001275,6.21758437,3217.9,3217.8,0.31087]
[1736934002987,0.31089,3217.6,3217.5,0.3109]
[1736934003281,2.45106609,3217.6,3217.5,0.3109]
[1736934003883,0.31088,3217.8,3217.7,0.31088]
[1736934004086,0.4938,3217.9,3217.8,0.31087]
[1736934004282,3.2078,3218.0,3217.9,0.31086]
[1736934006986,0.4861,3218.1,3217.5,0.77727]
[1736934007285,0.4861,3218.1,3218.0,0.31085]
[1736934010285,0.31086,3218.0,3217.8,0.31087]
[1736934010486,0.4613,3218.0,3217.9,0.31086]
[1736934011080,3.2078,3218.4,3217.5,0.77726]
[1736934011276,3.2078,3218.4,3218.3,0.31083]
[1736934011689,0.9497,3218.6,3218.0,40.8]
[1736934011985,0.9497,3218.6,3218.5,0.31081]
[1736934012988,3.2078,3218.8,3218.1,0.77712]
[1736934013290,3.97318,3218.8,3218.7,0.31079]
[1736934013686,7.51707116,3218.8,3218.7,0.31079]
[1736934014283,9.65735725,3218.8,3218.0,40.8]
[1736934014591,0.31081,3218.5,3218.3,0.31082]
[1736934014786,0.31081,3218.5,3217.9,3.98497]
[1736934015293,0.31084,3218.2,3218.1,0.31085]
[1736934015488,7.07671095,3218.4,3218.3,0.31083]
[1736934015880,7.07671095,3218.4,3217.9,3.2078]
[1736934016293,6.76589095,3218.4,3218.3,0.31083]
[1736934018392,2.90566609,3218.8,3218.7,0.31079]
[1736934018792,6.15920056,3218.8,3218.7,0.31079]
[1736934019194,6.15920056,3218.8,3217.9,5.65886609]
[1736934019495,3.5186,3218.6,3218.4,0.31081]
[1736934019690,3.2078,3218.6,3218.5,0.31081]
[1736934020094,6.65364303,3218.6,3218.5,0.31081]
[1736934021795,3.21644609,3218.8,3218.6,0.31079]
[1736934022289,3.48150968,3218.7,3217.9,3.2078]
[1736934022495,0.31084,3218.2,3218.0,0.31085]
[1736934022696,5.65886609,3218.4,3217.9,3.2078]
[1736934022889,3.26569814,3218.1,3218.0,0.31085]
[1736934023099,3.26569814,3218.3,3217.9,44.0078]
[1736934023393,3.55733591,3218.5,3217.9,47.23603609]
[1736934023593,3.55733591,3218.5,3218.4,0.31082]
[1736934023792,3.55733591,3218.7,3218.6,0.3108]
[1736934023985,0.9695,3219.3,3218.6,2.76186609]
[1736934024188,0.9695,3219.3,3219.2,0.31074]
[1736934024388,0.4938,3219.3,3219.2,0.31074]
[1736934024889,0.4938,3219.3,3219.0,40.8]
[1736934025094,0.80453,3219.3,3219.1,0.31075]
[1736934026397,0.80454,3219.3,3219.1,0.31075]
[1736934026598,0.31074,3219.2,3219.0,41.11075]
[1736934026896,3.2078,3219.1,3218.7,0.31078]
[1736934027091,0.4977,3219.0,3218.5,0.4923]
[1736934027291,0.3108,3218.6,3218.4,0.31081]
[1736934027492,0.4737,3218.5,3218.4,0.31081]
[1736934027689,4.3123977,3218.5,3218.3,0.31082]
[1736934027999,4.3123977,3218.5,3218.1,42.052]
[1736934028000,4.0015877,3218.5,3218.4,0.31082]
[1736934028594,4.0015877,3218.5,3218.1,42.052]
[1736934029201,0.31082,3218.4,3218.1,40.8]
[1736934029386,0.4587,3218.3,3218.2,0.31083]
[1736934030394,4.0015877,3218.5,3218.4,0.31082]
[1736934031894,3.5278877,3218.5,3218.4,0.31082]
[1736934035408,3.8386977,3218.5,3218.3,0.31082]
[1736934035701,0.31083,3218.3,3218.1,0.31084]
[1736934036604,0.31083,3218.3,3218.1,0.31085]
[1736934036792,0.31083,3218.3,3217.3,0.77731]
[1736934036793,5.96303758,3218.2,3217.5,3.2078]
[1736934036996,6.90903758,3218.2,3217.5,3.2078]
[1736934037300,5.65886609,3217.9,3217.4,1.4504]
[1736934037501,0.3109,3217.5,3217.4,1.4504]
[1736934037702,2.45106609,3217.6,3217.2,4.88352955]
[1736934037899,0.31092,3217.3,3217.2,4.88352955]
[1736934038202,6.90935905,3217.3,3217.2,4.88352955]
[1736934038802,0.31094,3217.2,3216.9,0.31096]
[1736934039202,3.30737039,3217.1,3216.9,0.31096]
[1736934039518,2.45106609,3217.0,3216.8,40.8]
[1736934039802,3.51876,3216.9,3216.8,40.8]
[1736934040002,6.69717447,3216.9,3216.2,3.2078]
[1736934040306,2.45106609,3216.6,3216.1,0.31103]
[1736934040501,3.2078,3216.3,3216.2,40.8]
[1736934040696,3.2078,3216.3,3216.0,0.31104]
[1736934041105,3.2078,3216.3,3216.0,41.11104]
[1736934041295,3.51882,3216.3,3216.0,40.8]
[1736934041900,3.51882,3216.3,3216.0,41.11104]
[1736934042606,3.24231622,3216.2,3216.0,41.11104]
[1736934042807,3.24231622,3216.2,3216.1,0.31104]
[1736934044008,3.24231622,3216.2,3216.0,40.8]
[1736934044205,3.24231622,3216.2,3216.1,0.31104]
[1736934045007,3.24231622,3216.2,3216.0,41.11104]
[1736934045205,3.24231622,3216.2,3216.0,40.8]
[1736934045714,3.55334622,3216.2,3216.0,40.8]
[1736934046011,3.24231622,3216.2,3216.0,40.8]
[1736934046303,3.24231622,3216.2,3216.0,41.11105]
[1736934046503,3.24231622,3216.2,3216.0,40.8]
[1736934046908,3.24231622,3216.2,3215.7,3.2078]
[1736934047109,2.45106609,3216.0,3215.3,3.6625]
[1736934047309,2.76211609,3216.0,3215.7,0.31107]
[1736934047513,3.322083,3215.9,3215.7,41.11107]
[1736934048107,3.322083,3215.9,3215.8,0.31107]
[1736934049205,3.322083,3215.9,3215.6,0.31108]
[1736934049411,3.322083,3215.9,3215.7,0.31108]
[1736934049911,3.322083,3215.9,3215.8,0.31107]
[1736934051409,3.34704637,3216.0,3215.8,41.11107]
[1736934052113,5.65886609,3216.3,3215.3,3.6625]
[1736934052312,3.86510965,3216.0,3215.7,0.31107]
[1736934052507,0.31105,3216.0,3215.7,0.31107]
[1736934052709,3.55980875,3215.9,3215.4,40.8]
[1736934053015,3.55980875,3215.9,3215.8,0.31107]
[1736934053511,0.31104,3216.1,3215.8,0.31107]
[1736934053909,3.29259262,3216.0,3215.8,0.31107]
[1736934054306,3.29259262,3216.0,3215.9,0.31106]
[1736934054510,3.2078,3216.3,3215.8,3.2078]
[1736934054708,3.2078,3216.3,3216.2,0.31103]
[1736934055014,6.55846837,3216.3,3216.2,0.31103]
[1736934056318,6.86948837,3216.3,3216.1,0.31104]
[1736934056515,6.55846837,3216.3,3216.2,0.31103]
[1736934059221,6.55846837,3216.3,3216.0,0.4892]
[1736934059410,6.55846837,3216.3,3216.1,0.31103]
[1736934059611,6.86948837,3216.3,3216.1,0.31103]
[1736934060013,6.55846837,3216.3,3216.0,0.4892]
[1736934060214,0.31104,3216.1,3215.4,44.0078]
[1736934060414,0.31104,3216.1,3215.8,0.31106]
[1736934060716,0.4569,3216.2,3215.6,1.4206]
[1736934060717,3.26474437,3216.0,3215.6,1.4206]
[1736934060915,3.26474437,3216.0,3215.9,0.31106]
[1736934061218,3.26474437,3216.1,3216.0,0.31105]
[1736934061417,0.4569,3216.2,3216.1,0.31104]
[1736934061609,0.4569,3216.2,3216.0,0.31104]
[1736934061810,3.31506128,3216.1,3216.0,0.31104]
[1736934064220,3.2078,3216.7,3216.2,0.31103]
[1736934064522,3.2078,3216.7,3216.6,0.31099]
[1736934064716,3.2078,3216.7,3216.3,0.9823]
[1736934064717,3.2078,3217.1,3216.3,1.4727]
[1736934064921,3.2078,3217.1,3216.4,40.8]
[1736934065120,6.56051484,3217.1,3217.0,0.31095]
[1736934066013,6.56051484,3217.1,3216.6,40.8]
[1736934066213,6.56051484,3217.1,3216.9,0.31096]
[1736934066719,6.87146484,3217.1,3216.9,0.31096]
[1736934066919,6.87146484,3217.1,3216.7,0.31098]
[1736934066920,6.56051484,3217.1,3216.7,0.31098]
[1736934067119,6.56051484,3217.1,3216.6,40.8]
[1736934067120,0.31098,3216.7,3216.6,40.8]
[1736934067315,2.45106609,3217.0,3216.4,0.311]
[1736934067623,0.31099,3216.6,3216.4,0.31101]
[1736934067813,0.31101,3216.4,3216.3,40.8]
[1736934068013,0.31101,3216.4,3216.2,0.31102]
[1736934069027,4.25967889,3216.5,3215.9,41.7411]
[1736934069220,4.25967889,3216.5,3215.9,1.25215]
[1736934069221,0.31104,3216.1,3215.9,1.25215]
[1736934069416,3.61357924,3216.3,3216.1,0.31104]
[1736934069723,3.30255924,3216.4,3216.3,0.31102]
[1736934069920,3.30255924,3216.4,3215.9,41.7411]
[1736934069921,3.2078,3216.7,3215.9,42.51873]
[1736934070223,3.51878,3216.7,3216.5,0.311]
[1736934070525,3.4508483,3216.6,3216.5,0.311]
[1736934071022,0.311,3216.5,3216.3,0.31101]
[1736934071225,3.7618483,3216.6,3216.4,0.311]
[1736934071520,3.7618483,3216.6,3216.3,0.31101]
[1736934071722,3.7618483,3216.6,3215.9,41.7411]
[1736934072219,3.4508483,3216.6,3215.9,41.7411]
[1736934072524,0.311,3216.5,3215.9,41.7411]
[1736934072723,0.7848,3216.5,3216.3,0.31102]
[1736934073024,3.28742959,3216.4,3215.9,0.9411]
[1736934073226,3.28742959,3216.4,3216.3,0.31102]
[1736934073416,3.28742959,3216.4,3215.9,0.9411]
[1736934073417,3.59843959,3216.4,3216.2,0.31103]
[1736934074025,3.28742959,3216.4,3216.3,0.31102]
[1736934074624,0.31102,3216.3,3216.1,0.31103]
[1736934075018,3.59844959,3216.4,3215.9,0.9411]
[1736934075325,3.28742959,3216.4,3216.3,0.31102]
[1736934075619,3.59843959,3216.4,3216.2,0.31102]
[1736934075823,0.31102,3216.3,3216.1,0.31103]
[1736934076824,0.31103,3216.2,3216.0,0.31105]
[1736934077029,0.31103,3216.2,3215.9,0.9411]
[1736934077319,0.31103,3216.2,3216.0,0.31105]
[1736934077524,3.2078,3216.3,3215.9,0.9411]
[1736934077823,3.8086662,3216.1,3215.9,0.77835]
[1736934078019,3.9763262,3216.2,3216.1,0.31104]
[1736934078324,0.4787,3216.2,3216.1,0.31104]
[1736934078523,3.9763262,3216.2,3216.1,0.31104]
[1736934080727,4.2873562,3216.2,3216.1,0.31104]
[1736934080921,4.2873562,3216.2,3216.0,0.31104]
[1736934081619,2.45106609,3216.1,3215.8,44.0078]
[1736934081924,2.45106609,3216.1,3215.4,3.668]
[1736934082233,3.48204279,3216.0,3215.5,40.8]
[1736934082417,0.31107,3215.8,3215.6,0.31108]
[1736934082617,0.31108,3215.7,3215.6,0.31108]
[1736934082826,3.84730601,3215.7,3215.6,0.31108]
[1736934083227,0.31108,3215.7,3215.5,40.8]
[1736934083425,3.84730601,3215.7,3215.6,0.31109]
[1736934083829,3.53622601,3215.7,3215.6,0.31109]
[1736934084331,3.2078,3216.2,3216.1,0.31104]
[1736934084724,3.2078,3216.6,3216.5,0.311]
[1736934084927,3.67,3217.0,3216.9,0.31096]
[1736934085431,7.2601675,3217.0,3216.9,41.11096]
[1736934086225,6.7979675,3217.0,3216.9,41.11096]
[1736934086536,3.2078,3217.0,3216.9,41.11096]
[1736934087030,3.2078,3217.5,3216.9,40.8]
[1736934087224,3.5187,3217.5,3217.2,0.31092]
[1736934087424,7.04133969,3217.5,3217.2,0.31092]
[1736934087935,0.31092,3217.4,3217.1,0.31094]
[1736934088132,9.18150578,3217.5,3217.0,0.9475]
[1736934088428,3.37926393,3217.3,3217.2,0.31093]
[1736934088825,3.37926393,3217.4,3217.0,0.9475]
[1736934089021,5.65886609,3217.5,3217.3,0.31092]
[1736934089225,5.65886609,3217.5,3217.0,0.9475]
[1736934089226,3.56575595,3217.4,3217.0,0.9475]
[1736934089424,3.25483595,3217.4,3217.0,0.9475]
[1736934089629,3.56574595,3217.4,3217.2,0.31093]
[1736934090031,3.25483595,3217.4,3217.3,0.31092]
[1736934090329,3.25483595,3217.4,3217.2,0.31093]
[1736934091330,3.25483595,3217.4,3217.3,0.31092]
[1736934091828,3.25483595,3217.4,3217.0,0.9475]
[1736934092032,3.25483595,3217.4,3217.2,0.31093]
[1736934092225,3.56575595,3217.4,3217.2,0.31093]
[1736934093226,3.56575595,3217.4,3217.0,0.9475]
[1736934093428,3.56575595,3217.4,3217.1,0.31094]
[1736934093830,3.56575595,3217.4,3217.0,0.9475]
[1736934094029,0.31092,3217.3,3217.1,0.31094]
[1736934094535,3.36302682,3217.2,3217.1,0.31094]
[1736934095033,3.37590846,3217.3,3217.1,0.31094]
[1736934095234,0.31092,3217.4,3217.2,0.31093]
[1736934095431,5.96977609,3217.5,3217.2,0.31093]
[1736934095631,3.37590846,3217.3,3217.2,0.31093]
[1736934095836,3.3131366,3217.4,3217.0,0.9475]
[1736934096038,5.96977609,3217.5,3217.3,0.31092]
[1736934096531,3.3131366,3217.4,3217.3,0.31092]
[1736934097436,0.31093,3217.3,3217.0,0.31095]
[1736934097740,0.31093,3217.3,3217.1,0.31094]
[1736934098037,3.32154063,3217.2,3217.0,0.31095]
[1736934098237,0.31095,3217.1,3216.8,0.31097]
[1736934098433,0.31095,3217.0,3216.6,4.6048]
[1736934098735,0.4637,3216.9,3216.7,0.31098]
[1736934099034,0.31098,3216.7,3216.6,3.2078]
[1736934099338,0.31099,3216.6,3216.5,1.0]
[1736934099543,2.76205609,3216.6,3216.5,1.0]
[1736934099833,6.10739981,3216.6,3216.5,1.0]
[1736934105438,3.65633372,3216.6,3216.5,1.0]
[1736934109037,3.34534372,3216.6,3216.5,1.0]
[1736934109239,3.34534372,3216.6,3216.5,1.311]
[1736934109543,0.31099,3216.6,3216.5,1.0]
[1736934109939,3.27229179,3216.6,3216.5,1.0]
[1736934110137,3.27229179,3216.6,3216.5,1.311]
[1736934111437,3.27229179,3216.6,3216.5,1.0]
[1736934112035,3.27229179,3216.6,3216.5,1.311]
[1736934113645,3.27229179,3216.6,3216.5,0.311]
[1736934113947,0.31098,3216.7,3216.5,0.311]
[1736934114245,3.27149189,3216.8,3216.4,0.4823]
[1736934114844,3.51877,3216.9,3216.7,0.31098]
[1736934115042,0.31097,3216.8,3216.6,0.31098]
[1736934115345,0.31097,3216.8,3216.5,0.31099]
[1736934115647,0.31098,3216.7,3216.5,0.31099]
[1736934116345,3.59867232,3216.8,3216.5,0.31099]
[1736934116847,3.59867232,3216.8,3216.6,0.31099]
[1736934117346,3.59867232,3216.8,3216.4,0.4823]
[1736934117743,3.59867232,3216.8,3216.6,0.31099]
[1736934118448,3.28769232,3216.8,3216.4,0.4823]
[1736934118647,3.28769232,3216.8,3216.7,0.31098]
[1736934119947,3.2078,3216.9,3216.8,0.31097]
[1736934122052,3.2078,3216.9,3216.6,0.31099]
[1736934122248,6.74197792,3216.9,3216.4,5.36582955]
[1736934122549,0.31097,3216.8,3216.7,0.31098]
[1736934123351,6.74197792,3216.9,3216.7,0.31098]
[1736934123553,6.74197792,3216.9,3216.8,0.31097]
[1736934123745,6.74197792,3216.9,3216.4,0.4823]
[1736934123746,7.05293792,3216.9,3216.4,0.4823]
[1736934123948,6.74197792,3216.9,3216.4,0.4823]
[1736934124154,0.31099,3216.6,3216.5,0.31099]
[1736934124553,0.31098,3216.7,3216.5,0.31099]
[1736934125053,0.31098,3216.7,3216.6,0.31099]
[1736934125750,3.2078,3216.9,3216.4,0.4823]
[1736934125951,3.2078,3216.9,3216.8,0.31097]
[1736934127447,3.2078,3216.9,3216.4,0.4823]
[1736934127653,0.31098,3216.7,3216.5,0.31099]
[1736934128053,0.31098,3216.8,3216.6,0.31098]
[1736934128347,0.31098,3216.7,3216.6,0.31098]
[1736934128552,6.51506541,3216.9,3216.6,0.31098]
[1736934128858,0.31098,3216.8,3216.6,0.31098]
[1736934129251,3.51878,3216.8,3216.6,0.31098]
[1736934129454,0.4631,3216.7,3216.6,0.31098]
[1736934129855,0.77408,3216.7,3216.6,0.31098]
[1736934130458,1.27348,3216.7,3216.6,0.31098]
[1736934130952,0.31099,3216.6,3216.5,0.311]
[1736934131157,1.27349,3216.7,3216.6,0.31099]
[1736934132157,0.9625,3216.7,3216.4,0.4823]
[1736934132461,0.31101,3216.4,3216.3,1.0]
[1736934132756,0.311,3216.5,3216.4,0.31101]
[1736934133159,0.311,3216.5,3216.3,1.0]
[1736934133355,0.311,3216.5,3216.3,1.31101]
[1736934133758,0.311,3216.5,3216.4,0.31101]
[1736934133956,0.311,3216.5,3216.3,1.31101]
[1736934134258,4.46856058,3216.7,3216.4,0.31101]
[1736934134459,4.46856058,3216.7,3216.6,0.31099]
[1736934135058,4.46856058,3216.7,3216.3,1.0]
[1736934135256,0.311,3216.5,3216.4,0.31101]
[1736934135653,0.31099,3216.6,3216.4,0.31101]
[1736934136057,3.58949513,3216.5,3216.4,0.31101]
[1736934136558,3.90049513,3216.5,3216.3,1.31101]
[1736934137753,3.58949513,3216.5,3216.3,1.0]
[1736934138153,3.90049513,3216.5,3216.3,1.0]
[1736934138360,3.58949513,3216.5,3216.4,0.31101]
[1736934138756,3.90050513,3216.5,3216.3,1.31101]
[1736934138956,3.58949513,3216.5,3216.3,1.0]
[1736934139157,0.31101,3216.4,3216.3,1.0]
[1736934139358,3.51881,3216.4,3216.3,1.0]
[1736934139559,6.99311142,3216.4,3216.3,1.0]
[1736934140861,6.68210142,3216.4,3216.3,1.31102]
[1736934141159,0.4994,3216.7,3216.6,0.31099]
[1736934141361,3.2078,3216.8,3216.7,0.31098]
[1736934141758,6.46886964,3216.8,3216.7,0.31098]
[1736934143163,3.2078,3216.8,3216.7,0.31098]
[1736934146564,3.2078,3216.8,3216.4,0.31101]
[1736934146565,9.2232386,3216.8,3216.4,0.31101]
[1736934146764,0.311,3216.5,3216.3,1.31101]
[1736934147067,0.4992,3216.4,3216.3,1.0]
[1736934147268,4.30356104,3216.4,3216.3,1.31102]
[1736934147468,0.81021,3216.4,3216.3,1.31102]
[1736934147772,4.30356104,3216.4,3216.3,1.31102]
[1736934147973,3.99255104,3216.4,3216.3,1.31102]
[1736934150074,3.49335104,3216.4,3216.3,1.31102]
[1736934150268,0.475,3216.7,3216.6,0.31099]
[1736934150574,3.84407968,3216.7,3216.6,0.31099]
[1736934151471,3.36907968,3216.7,3216.6,0.31099]
[1736934152173,3.49000908,3217.0,3216.9,0.31096]
[1736934152374,0.31095,3217.0,3216.9,0.31096]
[1736934152576,0.31095,3217.0,3216.4,0.9441]
[1736934152577,3.49000908,3217.0,3216.4,0.4915]
[1736934152875,0.311,3216.6,3216.4,0.31101]
[1736934153063,0.942,3216.5,3216.4,0.31101]
[1736934153265,4.28566207,3216.5,3216.4,0.31101]
[1736934153668,0.31101,3216.4,3216.3,1.0]
[1736934154077,3.89934538,3216.4,3216.3,1.0]
[1736934155270,3.58833538,3216.4,3216.3,1.31102]
[1736934158682,3.2078,3217.1,3216.3,3.45106609]
[1736934158878,3.2078,3217.1,3217.0,0.31095]
[1736934159276,3.2078,3217.6,3217.0,40.8]
[1736934159589,3.2078,3218.0,3217.9,0.31086]
[1736934161680,4.172,3218.4,3218.2,0.31083]
[1736934162177,4.172,3218.4,3217.8,3.2078]
[1736934162377,4.48282,3218.4,3218.0,0.31085]
[1736934162575,0.31083,3218.3,3218.0,0.31085]
[1736934162775,4.172,3218.4,3218.0,0.31085]
[1736934162977,4.172,3218.4,3217.8,3.2078]
[1736934163183,3.2078,3218.4,3218.3,0.31083]
[1736934163874,3.2078,3218.4,3218.2,0.31083]
[1736934165376,3.4136422,3218.3,3217.9,0.9912]
[1736934165581,0.31086,3218.0,3217.4,4.4568]
[1736934165785,0.31086,3218.0,3217.6,0.31089]
[1736934166277,0.4664,3218.1,3217.4,3.2078]
[1736934166485,0.4664,3218.1,3218.0,0.31085]
[1736934166986,3.24795718,3218.1,3218.0,0.31085]
[1736934167285,0.4915,3218.3,3218.1,0.31084]